{"text_format":"3","workbook":"xlsx","n_sheets":1,"sheets":["Предмет олимпиады-параллель"],"not_rendered":{"defined_names":1},"read":"whole","date_system":"1900"}

{"sheet":"Предмет олимпиады-параллель","index":0,"n_rows":118,"n_cols":15,"rows_kept":118,"merged":[[0,0,0,14],[1,0,1,14],[2,1,2,4],[2,6,2,14],[3,1,3,5],[3,6,3,14],[4,1,4,4],[4,5,4,14],[5,6,5,14],[6,6,6,14],[7,6,7,14],[8,1,9,1],[8,2,8,7],[8,8,8,12],[8,13,8,14]]}
["ВЕДОМОСТЬ"]
[" оценивания работ участников муниципального этапа всероссийской олимпиады школьников 2019/20 учебного года                                                      "]
[null,"Муниципалитет:",{"$nulls":4},"г. Омск"]
[null,"Образовательная организация:"]
[null,"Предмет олимпиады:  ",{"$nulls":3},"Английский язык"]
[null,"Возрастная параллель (класс): ",null,null,11]
[null,"Дата проведения: ",null,"13.11.2019"]
[null,"Максимальное количество баллов:",{"$nulls":3},55]
[null,"№ п/п","Данные участника",{"$nulls":5},"I тур "]
[null,null,"Шифр","Класс обучения","Фамилия","Имя","Отчество","Образовательное учреждение","Аудирование (Listening) Max. 10","Чтение (Reading) Max. 15","Лексико-грамматический тест (Use of English) Max. 20","Письменная речь (Writing) Max. 10","Итого ","Место","Тип диплома (победитель/ призер)"]
[null,1,1111402,11,"Никифоров ","Лука","Артемович","БОУ г. Омска \"Лицей № 64\"",10,13,20,8,{"$f":"SUM(I11:L11)","v":51}]
[null,2,1111414,11,"Юдин","Илья","Андреевич","ФГБОУ ВПО \"Омский Государственный педагогический университет\", Академический лицей",10,13,20,7,{"$f":"SUM(I12:L12)","v":50}]
[null,3,1110903,11,"Проскурин ","Евгений","Юрьевич","БОУ г. Омска \"Гимназия № 9\"",10,12,19,8,{"$f":"SUM(I13:L13)","v":49}]
[null,4,1110911,11,"Бачинина","Яна","Сергеевна","БОУ г. Омска \"Средняя общеобразовательная школа № 24\"",10,11,17,10,{"$f":"SUM(I14:L14)","v":48}]
[null,5,1110909,11,"Авиклин","Георгий","Игоревич","БОУ Омской области \"Многопрофильный образовательный центр развития одаренности № 117\"",10,8,19,10,{"$f":"SUM(I15:L15)","v":47}]
[null,6,1111409,11,"Федяева","Лилия","Александровна","БОУ г. Омска \"Средняя общеобразовательная школа с углубленным изучением отдельных предметов № 73\"",10,11,16,10,{"$f":"SUM(I16:L16)","v":47}]
[null,7,1110905,11,"Вьюшков","Даниил","Дмитриевич","НОУ ДОО\"Центр образования и развития\"",10,11,17,8,{"$f":"SUM(I17:L17)","v":46}]
[null,8,1111109,11,"Киселёв","Кирилл","Сергеевич","БОУ Омской области \"Многопрофильный образовательный центр развития одаренности № 117\"",8,12,19,7,{"$f":"SUM(I18:L18)","v":46}]
[null,9,1111005,11,"Полеева","Алина","Сергеевна","БОУ г. Омска \"Гимназия № 84\"",10,9,17,10,{"$f":"SUM(I19:L19)","v":46}]
[null,10,1110908,11,"Смирнова","Ксения ","Евгеньевна","БОУ г. Омска \"Гимназия № 19\"",10,8,18,10,{"$f":"SUM(I20:L20)","v":46}]
[null,11,1111608,11,"Марковиченко","Максим","Сергеевич","БОУ г. Омска \"Гимназия № 140\"",9,9,17,10,{"$f":"SUM(I21:L21)","v":45}]
[null,12,1111009,11,"Ранних","Екатерина","Александровна","БОУ г. Омска \"Гимназия № 19\"",10,10,16,9,{"$f":"SUM(I22:L22)","v":45}]
[null,13,1111413,11,"Флек","Наталья","Михайловна","БОУ г. Омска \"Гимназия № 19\"",10,9,16,10,{"$f":"SUM(I23:L23)","v":45}]
[null,14,1110914,11,"Хабарова","Дарья","Дмитриевна","БОУ Омской области \"Многопрофильный образовательный центр развития одаренности № 117\"",10,8,18,9,{"$f":"SUM(I24:L24)","v":45}]
[null,15,1111014,11,"Сагеева","Зоя","Сергеевна","БОУ г. Омска \"Гимназия № 140\"",10,8,18,8,{"$f":"SUM(I25:L25)","v":44}]
[null,16,1111107,11,"Абдикеев","Марат","Хусаинович","БОУ Омской области \"Многопрофильный образовательный центр развития одаренности № 117\"",8,9,18,8,{"$f":"SUM(I26:L26)","v":43}]
[null,17,1110901,11,"Волошина ","Кристина","Алексеевна","БОУ г. Омска \"Гимназия № 115\"",10,10,13,10,{"$f":"SUM(I27:L27)","v":43}]
[null,18,1110904,11,"Воронова","Милана","Петровна","БОУ Омской области \"Многопрофильный образовательный центр развития одаренности № 117\"",7,10,16,10,{"$f":"SUM(I28:L28)","v":43}]
[null,19,1111115,11,"Латышкина","Вера","Андреевна","БОУ г. Омска \"Гимназия № 19\"",9,10,16,8,{"$f":"SUM(I29:L29)","v":43}]
[null,20,1110913,11,"Бабушкина","Антонина","Сергеевна","БОУ Омской области \"Многопрофильный образовательный центр развития одаренности № 117\"",9,7,19,7,{"$f":"SUM(I30:L30)","v":42}]
[null,21,1111011,11,"Запорожцева","Алиса","Вячеславовна","БОУ г. Омска \"Гимназия № 150 \"",6,11,15,10,{"$f":"SUM(I31:L31)","v":42}]
[null,22,1111603,11,"Колпакова","Екатерина","Алексеевна","БОУ Омской области \"Многопрофильный образовательный центр развития одаренности № 117\"",9,9,16,8,{"$f":"SUM(I32:L32)","v":42}]
[null,23,1110907,11,"Кузнецов","Михаил","Александрович","БОУ г. Омска \"Средняя общеобразовательная школа № 34\"",10,10,16,6,{"$f":"SUM(I33:L33)","v":42}]
[null,24,1111102,11,"Соснина ","Станислава","Ивановна","БОУ г. Омска \"Гимназия № 115\"",10,7,17,8,{"$f":"SUM(I34:L34)","v":42}]
[null,25,1111213,11,"Шнайдер","Вероника","Александровна","БОУ г. Омска \"Гимназия № 146\"",10,10,14,8,{"$f":"SUM(I35:L35)","v":42}]
[null,26,1111201,11,"Эмотаева","Александра","Андреевна","БОУ г. Омска \"Гимназия № 115\"",8,8,17,9,{"$f":"SUM(I36:L36)","v":42}]
[null,27,1111209,11,"Квашнина ","Алина ","Игоревна","БОУ г. Омска \"Лицей \"Бизнес и информационные технологии\"",9,9,14,9,{"$f":"SUM(I37:L37)","v":41}]
[null,28,1111308,11,"Петрова","Дарья","Владимировна","БОУ Омской области \"Многопрофильный образовательный центр развития одаренности № 117\"",7,11,15,8,{"$f":"SUM(I38:L38)","v":41}]
[null,29,1110910,11,"Алексеева ","Анастасия","Александровна","БОУ г. Омска \"Гимназия № 85\"",10,4,17,9,{"$f":"SUM(I39:L39)","v":40}]
[null,30,1110912,11,"Коршунова","Яна","Александровна","БОУ г. Омска \"Средняя общеобразовательная школа № 78\"",10,8,15,7,{"$f":"SUM(I40:L40)","v":40}]
[null,31,1111206,11,"Фарберова","Елена","Денисовна","БОУ г. Омска \"Средняя общеобразовательная школа № 24\"",7,11,14,8,{"$f":"SUM(I41:L41)","v":40}]
[null,32,1111110,11,"Ахмадеевна","Алина","Газизовна","БОУ г. Омска \"Лицей № 66\"",9,8,13,9,{"$f":"SUM(I42:L42)","v":39}]
[null,33,1111607,11,"Мизенко","Валерия","Олеговна","БОУ г. Омска \"Лицей № 74\"",9,7,15,8,{"$f":"SUM(I43:L43)","v":39}]
[null,34,1111210,11,"Холкин","Александр","Андреевич","БОУ Омской области \"Многопрофильный образовательный центр развития одаренности № 117\"",8,7,17,7,{"$f":"SUM(I44:L44)","v":39}]
[null,35,1111008,11,"Хворенкова","Анна","Вячеславовна","БОУ г. Омска \"Гимназия № 75\"",8,4,17,9,{"$f":"SUM(I45:L45)","v":38}]
[null,36,1111013,11,"Березин","Александр","Иванович","БОУ Омской области \"Многопрофильный образовательный центр развития одаренности № 117\"",9,8,13,7,{"$f":"SUM(I46:L46)","v":37}]
[null,37,1111006,11,"Карякина","Марина","Александровна","БОУ г. Омска \"Гимназия № 146\"",6,6,16,9,{"$f":"SUM(I47:L47)","v":37}]
[null,38,1111606,11,"Корнев","Егор","Дмитриевич","БОУ г. Омска \"Лицей № 149\"",8,10,14,5,{"$f":"SUM(I48:L48)","v":37}]
[null,39,1111405,11,"Шестаков","Михаил","Игоревич","БОУ г. Омска \"Лицей № 149\"",7,13,11,6,{"$f":"SUM(I49:L49)","v":37}]
[null,40,1111012,11,"Бродский","Алексей","Павлович","ФГБОУ ВПО \"Омский Государственный педагогический университет\", Академический лицей",6,9,14,7,{"$f":"SUM(I50:L50)","v":36}]
[null,41,1111301,11,"Гагишвили ","Этери","Дмитриевна","БОУ г. Омска \"Гимназия № 115\"",7,8,14,7,{"$f":"SUM(I51:L51)","v":36}]
[null,42,1111113,11,"Зубков","Максим","Константинович","БОУ г. Омска \"Гимназия № 147\"",8,9,13,6,{"$f":"SUM(I52:L52)","v":36}]
[null,43,1110902,11,"Кисельникова ","Софья","Дмитриевна","БОУ г. Омска \"Гимназия № 115\"",8,7,14,7,{"$f":"SUM(I53:L53)","v":36}]
[null,44,1111202,11,"Морозова","Мария","Олеговна","БОУ г. Омска \"Гимназия № 115\"",9,8,11,8,{"$f":"SUM(I54:L54)","v":36}]
[null,45,1111101,11,"Андреева","Виктория","Андреевна","БОУ г. Омска \"Гимназия № 115\"",7,5,15,8,{"$f":"SUM(I55:L55)","v":35}]
[null,46,1111612,11,"Минеева","Анна","Андреевна","БОУ г. Омска \"Гимназия № 62\"",7,6,15,7,{"$f":"SUM(I56:L56)","v":35}]
[null,47,1111602,11,"Переверзев","Максим","Евгеньевич","БОУ Омской области \"Многопрофильный образовательный центр развития одаренности № 117\"",8,8,13,6,{"$f":"SUM(I57:L57)","v":35}]
[null,48,1111004,11,"Разумов","Денис","Сергеевич","БОУ г. Омска \"Средняя общеобразовательная школа № 58\"",7,4,14,10,{"$f":"SUM(I58:L58)","v":35}]
[null,49,1111401,11,"Рауш","Александра","Александровна","БОУ г. Омска \"Гимназия № 115\"",7,7,13,8,{"$f":"SUM(I59:L59)","v":35}]
[null,50,1111302,11,"Познахирева ","Полина","Игоревна","БОУ г. Омска \"Гимназия № 115\"",5,8,13,8,{"$f":"SUM(I60:L60)","v":34}]
[null,51,1111410,11,"Эльзессер","Владислав","Дмитриевич","НОУ ДОО\"Центр образования и развития\"",5,9,12,8,{"$f":"SUM(I61:L61)","v":34}]
[null,52,1111407,11,"Васильева","Алина","Юрьевна","БОУ г. Омска \"Лицей № 149\"",6,7,12,8,{"$f":"SUM(I62:L62)","v":33}]
[null,53,1111415,11,"Винокурова","Елизавета","Викторовна","БОУ г. Омска \"Лицей \"Бизнес и информационные технологии\"",6,6,12,9,{"$f":"SUM(I63:L63)","v":33}]
[null,54,1111203,11,"Галькова","Ольга","Валерьевна","БОУ г. Омска \"Гимназия № 75\"",8,7,11,7,{"$f":"SUM(I64:L64)","v":33}]
[null,55,1111207,11,"Павлов","Артем","Владимирович","БОУ г. Омска \"Лицей № 66\"",8,4,13,8,{"$f":"SUM(I65:L65)","v":33}]
[null,56,1111411,11,"Похабова","Полина","Алексеевна","БОУ г. Омска \"Средняя общеобразовательная школа № 47 с углубленным изучением отдельных предметов\"",7,5,13,8,{"$f":"SUM(I66:L66)","v":33}]
[null,57,1111211,11,"Грицан","Иван","Русланович","БОУ Омской области \"Многопрофильный образовательный центр развития одаренности № 117\"",9,6,11,6,{"$f":"SUM(I67:L67)","v":32}]
[null,58,1111408,11,"Краузин","Даниил","Евгеньевич","БОУ г. Омска \"Лицей № 149\"",6,7,14,5,{"$f":"SUM(I68:L68)","v":32}]
[null,59,1111306,11,"Иванищев","Григорий","Сергеевич","БОУ г. Омска \"Гимназия № 75\"",7,9,15,0,{"$f":"SUM(I69:L69)","v":31}]
[null,60,1111214,11,"Ильчук","Владислава","Романовна","БОУ г. Омска \"Гимназия № 147\"",6,5,12,8,{"$f":"SUM(I70:L70)","v":31}]
[null,61,1111310,11,"Полякова","Полина","Сергеевна","БОУ Омской области \"Многопрофильный образовательный центр развития одаренности № 117\"",6,9,11,5,{"$f":"SUM(I71:L71)","v":31}]
[null,62,1111106,11,"Спирина ","Эвелина ","Олеговна","БОУ г. Омска \"Лицей № 92\"",7,5,11,8,{"$f":"SUM(I72:L72)","v":31}]
[null,63,1111104,11,"Чекалёв","Артем","Алексеевич","БОУ г. Омска \"Лицей № 92\"",5,7,11,8,{"$f":"SUM(I73:L73)","v":31}]
[null,64,1111208,11,"Грин","Татьяна","Александровна","БОУ г. Омска \"Средняя общеобразовательная школа № 79\"",7,6,11,6,{"$f":"SUM(I74:L74)","v":30}]
[null,65,1111610,11,"Кеба","Яна","Витальевна","БОУ г. Омска \"Гимназия № 12 имени Героя Советского Союза  В.П. Горячева\"",6,7,9,8,{"$f":"SUM(I75:L75)","v":30}]
[null,66,1111307,11,"Чернуха","Екатерина","Дмитриевна","БОУ г. Омска \"Лицей № 149\"",6,6,12,6,{"$f":"SUM(I76:L76)","v":30}]
[null,67,1111015,11,"Подойменкр","Антон","Андреевич","БОУ г. Омска \"Средняя общеобразовательная школа № 162\"",7,8,9,5,{"$f":"SUM(I77:L77)","v":29}]
[null,68,1111304,11,"Янчугова","Анастасия","Валерьевна","БОУ г. Омска \"Лицей № 54\"",7,6,7,8,{"$f":"SUM(I78:L78)","v":28}]
[null,69,1111309,11,"Суворина ","Елизавета","Владимировна","БОУ Омской области \"Многопрофильный образовательный центр развития одаренности № 117\"",0,5,15,7,{"$f":"SUM(I79:L79)","v":27}]
[null,70,1111303,11,"Фурлетова","Анна","Алексеевна","БОУ г. Омска \"Лицей № 54\"",7,10,5,4,{"$f":"SUM(I80:L80)","v":26}]
[null,71,1111112,11,"Коваленко","Анастасия","Тарасовна","БОУ г. Омска \"Лицей № 92\"",7,1,11,6,{"$f":"SUM(I81:L81)","v":25}]
[null,72,1111312,11,"Осипенко","София","Геннадьевна","БОУ г. Омска \"Лицей № 54\"",7,3,9,6,{"$f":"SUM(I82:L82)","v":25}]
[null,73,1111212,11,"Филипенко","Дмитрий","Андреевич","БОУ г. Омска \"Лицей № 92\"",6,3,8,7,{"$f":"SUM(I83:L83)","v":24}]
[null,74,1111103,11,"Леготина","Ольга","Вячеславовна","БОУ г. Омска \"Средняя общеобразовательная школа № 162\"",3,3,11,6,{"$f":"SUM(I84:L84)","v":23}]
[null,75,1111204,11,"Тарасова","Екатерина","Олеговна","БОУ г. Омска \"Лицей № 92\"",9,3,8,3,{"$f":"SUM(I85:L85)","v":23}]
[null,76,1111205,11,"Зотова","Белла","Валерьевна","Негосударственное образовательное частное учреждение \"Специализированный общеобразовательный лицей с этнокультурным национальным компонентом\"",2,8,6,6,{"$f":"SUM(I86:L86)","v":22}]
[null,77,1111215,11,"Низовая","Анастасия","Андреевна","БОУ г. Омска \"Лицей № 92\"",5,2,9,5,{"$f":"SUM(I87:L87)","v":21}]
[null,78,1111002,11,"Сковинский ","Алексей","Максимович","БОУ г. Омска \"Гимназия № 115\"",5,3,8,5,{"$f":"SUM(I88:L88)","v":21}]
[null,79,1111403,11,"Донченко","Никита","Денисович","БОУ г. Омска \"Лицей № 145\"",6,3,10,0,{"$f":"SUM(I89:L89)","v":19}]
[null,80,1111604,11,"Ткачина","Михаил","Валентинович","ФГКОУ\"Омский кадетский военный корпус\" Министерства обороны Российской федерации",2,6,4,7,{"$f":"SUM(I90:L90)","v":19}]
[null,81,1111314,11,"Тягун","Анастасия ","Александровна","БОУ г. Омска \"Лицей № 74\"",5,6,8,0,{"$f":"SUM(I91:L91)","v":19}]
[null,82,1111114,11,"Меженникова","Валерия","Владимировна","БОУ г. Омска \"Гимназия № 146\"",4,5,9,0,{"$f":"SUM(I92:L92)","v":18}]
[null,83,1111108,11,"Забела","Никита","Александрович","БОУ г. Омска \"Лицей № 66\"",2,2,7,6,{"$f":"SUM(I93:L93)","v":17}]
[null,84,1111111,11,"Клевакина ","Ксения","Вадимовна","БОУ г. Омска \"Лицей № 66\"",3,3,7,0,{"$f":"SUM(I94:L94)","v":13}]
[null,85,1111406,11,"Матюшина","Валерия","Максимовна","БОУ г. Омска \"Лицей № 66\"",0,3,3,0,{"$f":"SUM(I95:L95)","v":6}]
[]
[]
[null,null,"Председатель жюри:                                ",null,null,"Устинова Татьяна Викторовна"]
[]
[null,null,"Члены жюри: ","Архипов Игорь Борисович"]
[{"$nulls":3},"Афанасьева Светлана Павловна"]
[{"$nulls":3},"Бахмутская Людмила Александровна"]
[{"$nulls":3},"Бердникова Ирина Владимировна"]
[{"$nulls":3},"Бижова Инна Анатольевна"]
[{"$nulls":3},"Ковалева Дина Борисовна"]
[{"$nulls":3},"Малышкин Константин Юрьевич"]
[{"$nulls":3},"Милюшенко Татьяна Валерьевна"]
[{"$nulls":3},"Павленко Евгений Александрович"]
[{"$nulls":3},"Попова Лариса Владимировна"]
[{"$nulls":3},"Семейн Лариса Юрьевна"]
[{"$nulls":3},"Соловьев Дмитрий Николаевич"]
[{"$nulls":3},"Чибышева Ольга Анатольевна"]
[{"$nulls":3},"Шестова Анна Александровна"]
[{"$nulls":3},"Мехов Дмитрий Владимирович"]
[{"$nulls":3},"Тебенькова Наталья Геннадьевна"]
[{"$nulls":3},"Трачук Людмила Олеговна"]
[{"$nulls":3},"Фролова Ирина Владимировна"]
[{"$nulls":3},"Толкачева Елизавета Сергеевна"]